fUSD/lending_fUSD_20250507
["ID","MTS","AMOUNT","RATE_DAILY","PERIOD"]
[360165521,1746586245041,-163.28077488,0.00019573,2]
[360165522,1746586245050,-663.31,0.00019573,2]
[360165523,1746586245060,-450.0,0.00019573,2]
[360165524,1746586245069,-450.0,0.00019573,2]
[360165525,1746586245078,-450.0,0.00019573,2]
[360165526,1746586245087,-495.29,0.00019573,2]
[360165527,1746586245096,-450.0,0.00019573,2]
[360165528,1746586245107,-450.0,0.00019573,2]
[360165529,1746586245117,-972.47,0.00019573,2]
[360165530,1746586245127,-1116.56,0.00019573,2]
[360165531,1746586245135,-829.61,0.00019573,2]
[360165532,1746586245145,-450.0,0.00019573,2]
[360165533,1746586245154,-524.91,0.00019573,2]
[360165534,1746586245163,-450.0,0.00019573,2]
[360165535,1746586245172,-481.7,0.00019573,2]
[360165536,1746586245181,-567.87,0.00019573,2]
[360165537,1746586245190,-181.85512276,0.00019573,2]
[360165538,1746586245199,-1155.47,0.00019573,2]
[360165539,1746586245208,-450.0,0.00019573,2]
[360165540,1746586245216,-450.0,0.00019573,2]
[360165541,1746586245225,-749.47,0.00019573,2]
[360165542,1746586245234,-361.50651991,0.00019573,2]
[360165543,1746586245244,-450.0,0.00019573,2]
[360165544,1746586245252,-1375.1,0.00019573,2]
[360165545,1746586245262,-450.0,0.00019573,2]
[360165546,1746586245271,-1347.64,0.00019573,2]
[360165547,1746586245279,-450.0,0.00019573,2]
[360165548,1746586245288,-450.0,0.00019573,2]
[360165549,1746586245297,-1356.75,0.00019573,2]
[360165550,1746586245306,-498.07,0.00019573,2]
[360165551,1746586245315,-450.0,0.00019573,2]
[360165552,1746586245326,-450.0,0.00019573,2]
[360165553,1746586245335,-450.0,0.00019573,2]
[360165554,1746586245343,-1250.19,0.00019573,2]
[360165555,1746586245352,-450.0,0.00019573,2]
[360165556,1746586245361,-450.0,0.00019573,2]
[360165557,1746586245370,-1020.77,0.00019573,2]
[360165558,1746586245379,-450.0,0.00019573,2]
[360165559,1746586245390,-540.51,0.00019573,2]
[360165560,1746586245400,-450.0,0.00019573,2]
[360165561,1746586245409,-450.0,0.00019573,2]
[360165562,1746586245419,-2929.56,0.00019573,2]
[360165563,1746586245429,-450.0,0.00019573,2]
[360165564,1746586245440,-27188.39,0.00019573,2]
[360165565,1746586245450,-28791.51,0.00019573,2]
[360165566,1746586245460,-450.0,0.00019573,2]
[360165567,1746586245469,-450.0,0.00019573,2]
[360165568,1746586245479,-450.0,0.00019573,2]
[360165569,1746586245488,-450.0,0.00019573,2]
[360165570,1746586245497,-219.59,0.00019573,2]
[360165571,1746586245505,-633.99,0.00019573,2]
[360165572,1746586245514,-577.8,0.00019573,2]
[360165573,1746586245528,-368.07554044,0.00019573,2]
[360165574,1746586245539,-1804.57,0.00019573,2]
[360165575,1746586245548,-450.0,0.00019573,2]
[360165576,1746586245558,-430.0,0.00019573,2]
[360165577,1746586245566,-450.0,0.00019573,2]
[360165578,1746586245576,-6514.38,0.00019573,2]
[360165579,1746586245585,-590.46,0.00019573,2]
[360165580,1746586245594,-450.0,0.00019573,2]
[360165581,1746586245603,-987.11,0.00019573,2]
[360165582,1746586245612,-450.0,0.00019573,2]
[360165583,1746586245621,-450.0,0.00019573,2]
[360165584,1746586245630,-450.0,0.00019573,2]
[360165585,1746586245639,-5395.74,0.00019573,2]
[360165586,1746586245651,-939.54,0.00019573,2]
[360165587,1746586245660,-450.0,0.00019573,2]
[360165588,1746586245669,-183.35498645,0.00019573,2]
[360165589,1746586245678,-500.0,0.00019573,2]
[360165590,1746586245687,-1155.96,0.00019573,2]
[360165591,1746586245696,-450.0,0.00019573,2]
[360165592,1746586245705,-1740.49,0.00019573,2]
[360165593,1746586245714,-450.0,0.00019573,2]
[360165594,1746586245723,-450.0,0.00019573,2]
[360165595,1746586245732,-584.6,0.00019573,2]
[360165596,1746586245741,-450.0,0.00019573,2]
[360165597,1746586245752,-450.0,0.00019573,2]
[360165598,1746586245761,-457.16,0.00019573,2]
[360165599,1746586245771,-450.0,0.00019573,2]
[360165600,1746586245780,-422.41784465,0.00019573,2]
[360165601,1746586245789,-180.912,0.0001958,2]
[360165602,1746586245798,-3290.498,0.0001958,2]
[360165603,1746586245808,-450.0,0.00019594,2]
[360165604,1746586245818,-13561.12003151,0.00019595,2]
[360165605,1746586245827,-10632.08550111,0.00019596,2]
[360165606,1746586245836,-1767.0,0.000196,2]
[360165607,1746586245845,-450.0,0.000196,2]
[360165608,1746586245855,-1300.0,0.000196,7]
[360165609,1746586245864,-450.0,0.000196,2]
[360165610,1746586245873,-450.0,0.00019604,2]
[360165611,1746586245882,-450.0,0.00019604,2]
[360165612,1746586245891,-450.0,0.00019604,2]
[360165613,1746586245901,-450.0,0.00019604,2]
[360165614,1746586245910,-450.0,0.00019604,2]
[360165615,1746586245919,-450.0,0.00019604,2]
[360165616,1746586245929,-450.0,0.00019604,2]
[360165617,1746586245938,-535.42,0.00019604,2]
[360165618,1746586245947,-450.0,0.00019604,2]
[360165619,1746586245956,-450.0,0.00019604,2]
[360165620,1746586245965,-450.0,0.00019604,2]
[360165621,1746586245974,-956.27,0.00019604,2]
[360165622,1746586245984,-968.52,0.00019604,2]
[360165623,1746586245997,-450.0,0.00019604,2]
[360165625,1746586246007,-450.0,0.00019604,2]
[360165626,1746586246016,-567.46,0.00019604,2]
[360165627,1746586246025,-571.33592835,0.00019604,2]
[360165628,1746586246034,-1219.74,0.00019604,2]
[360165629,1746586246043,-450.0,0.00019605,2]
[360165630,1746586246052,-450.0,0.00019605,2]
[360165631,1746586246061,-450.0,0.00019605,2]
[360165632,1746586246070,-450.0,0.00019605,2]
[360165633,1746586246079,-494.13248976,0.00019605,2]
[360165634,1746586246088,-450.0,0.00019605,2]
[360165635,1746586246097,-450.0,0.00019605,2]
[360165636,1746586246106,-386.55809285,0.00019605,2]
[360165637,1746586246115,-450.0,0.00019605,2]
[360165638,1746586246123,-450.0,0.00019605,2]
[360165639,1746586246132,-674.52,0.00019605,2]
[360165640,1746586246141,-450.0,0.00019605,2]
[360165641,1746586246150,-450.0,0.00019605,2]
[360165642,1746586246159,-450.0,0.00019605,2]
[360165643,1746586246168,-434.41700966,0.00019605,2]
[360165644,1746586246177,-450.0,0.00019605,2]
[360165645,1746586246186,-478.14,0.00019605,2]
[360165646,1746586246195,-497.87,0.00019605,2]
[360165647,1746586246203,-450.0,0.00019605,2]
[360165648,1746586246212,-589.41,0.00019605,2]
[360165649,1746586246221,-523.23658304,0.00019605,2]
[360165650,1746586246230,-450.0,0.00019605,2]
[360165651,1746586246239,-622.78,0.00019605,2]
[360165652,1746586246248,-450.0,0.00019605,2]
[360165653,1746586246257,-450.0,0.00019605,2]
[360165654,1746586246266,-450.0,0.00019605,2]
[360165655,1746586246276,-450.0,0.00019605,2]
[360165656,1746586246285,-450.0,0.00019605,2]
[360165657,1746586246295,-450.0,0.00019605,2]
[360165658,1746586246304,-450.0,0.00019605,2]
[360165659,1746586246313,-450.0,0.00019605,2]
[360165660,1746586246322,-762.01,0.00019605,2]
[360165661,1746586246331,-450.0,0.00019605,2]
[360165662,1746586246340,-450.0,0.00019605,2]
[360165663,1746586246348,-450.0,0.00019605,2]
[360165664,1746586246358,-450.0,0.00019605,2]
[360165665,1746586246367,-151.0,0.00019615,2]
[360165666,1746586246376,-450.0,0.00019639,2]
[360165667,1746586246385,-450.0,0.00019639,2]
[360165668,1746586246397,-1379.6,0.00019639,2]
[360165669,1746586246406,-867.09,0.00019639,2]
[360165670,1746586246415,-182.33876259,0.00019639,2]
[360165671,1746586246424,-686.44,0.00019639,2]
[360165672,1746586246435,-450.0,0.00019639,2]
[360165673,1746586246443,-450.0,0.00019639,2]
[360165674,1746586246452,-450.0,0.00019639,2]
[360165675,1746586246463,-450.0,0.00019639,2]
[360165676,1746586246473,-977.01,0.00019639,2]
[360165677,1746586246483,-450.0,0.00019639,2]
[360165678,1746586246491,-891.28,0.00019639,2]
[360165679,1746586246501,-450.0,0.00019639,2]
[360165680,1746586246511,-450.0,0.00019639,2]
[360165681,1746586246520,-450.0,0.00019639,2]
[360165682,1746586246529,-450.0,0.00019639,2]
[360165683,1746586246538,-458.5,0.00019639,2]
[360165684,1746586246547,-450.0,0.00019639,2]
[360165685,1746586246556,-450.0,0.00019639,2]
[360165686,1746586246565,-2181.83,0.00019639,2]
[360165687,1746586246574,-450.0,0.00019639,2]
[360165688,1746586246583,-450.0,0.00019639,2]
[360165689,1746586246593,-1200.07,0.00019639,2]
[360165690,1746586246602,-474.07,0.00019639,2]
[360165691,1746586246613,-450.0,0.00019639,2]
[360165692,1746586246622,-180.64510224,0.00019641,2]
[360165693,1746586246632,-2342.0,0.00019644,2]
[360165694,1746586246642,-5638.3855081,0.00019645,2]
[360165695,1746586246653,-297.5849757,0.00019645,2]
[360165696,1746586246662,-8065.139599,0.00019645,2]
[360165697,1746586246671,-10632.08550111,0.00019646,2]
[360165698,1746586246682,-308.8,0.00019649,2]
[360165699,1746586246691,-637.24,0.00019649,2]
[360165700,1746586246701,-450.0,0.00019649,2]
[360165701,1746586246710,-450.0,0.00019649,2]
[360165702,1746586246720,-450.0,0.00019649,2]
[360165703,1746586246729,-450.0,0.00019649,2]
[360165704,1746586246738,-450.0,0.00019649,2]
[360165705,1746586246748,-450.0,0.00019649,2]
[360165706,1746586246757,-450.0,0.00019649,2]
[360165707,1746586246766,-450.0,0.00019649,2]
[360165708,1746586246775,-450.0,0.00019649,2]
[360165709,1746586246785,-450.0,0.00019649,2]
[360165710,1746586246794,-450.0,0.00019649,2]
[360165711,1746586246803,-450.0,0.00019649,2]
[360165712,1746586246812,-450.0,0.00019649,2]
[360165713,1746586246822,-450.0,0.00019649,2]
[360165714,1746586246831,-418.05230118,0.00019649,2]
[360165715,1746586246840,-450.0,0.00019649,2]
[360165716,1746586246849,-450.0,0.00019649,2]
[360165717,1746586246859,-450.0,0.00019649,2]
[360165718,1746586246869,-450.0,0.00019649,2]
[360165719,1746586246878,-450.0,0.00019649,2]
[360165720,1746586246888,-450.0,0.00019649,2]
[360165721,1746586246898,-450.0,0.00019649,2]
[360165722,1746586246908,-450.0,0.00019649,2]
[360165723,1746586246918,-517.87,0.00019649,2]
[360165724,1746586246928,-450.0,0.00019649,2]
[360165725,1746586246937,-499.06,0.00019649,2]
[360165726,1746586246947,-450.0,0.00019649,2]
[360165727,1746586246957,-450.0,0.00019649,2]
[360165728,1746586246966,-450.0,0.00019649,2]
[360165729,1746586246976,-450.0,0.00019649,2]
[360165730,1746586246986,-450.0,0.00019649,2]
[360165731,1746586246995,-450.0,0.00019649,2]
[360165732,1746586247005,-450.0,0.00019649,2]
[360165733,1746586247015,-450.0,0.00019649,2]
[360165734,1746586247025,-663.31,0.00019649,2]
[360165735,1746586247034,-450.0,0.00019649,2]
[360165736,1746586247046,-829.61,0.00019649,2]
[360165737,1746586247056,-592.64545356,0.00019649,2]
[360165738,1746586247065,-524.91,0.00019649,2]
[360165739,1746586247075,-481.7,0.00019649,2]
[360165740,1746586247084,-450.0,0.00019649,2]
[360165741,1746586247094,-749.47,0.00019649,2]
[360165742,1746586247103,-498.07,0.00019649,2]
[360165743,1746586247113,-450.0,0.00019649,2]
[360165744,1746586247123,-450.0,0.00019649,2]
[360165745,1746586247132,-540.51,0.00019649,2]
[360165746,1746586247142,-450.0,0.00019649,2]
[360165747,1746586247152,-450.0,0.00019649,2]
[360165748,1746586247162,-450.0,0.00019649,2]
[360165749,1746586247171,-450.0,0.00019649,2]
[360165750,1746586247181,-450.0,0.00019649,2]
[360165751,1746586247191,-450.0,0.00019649,2]
[360165752,1746586247201,-450.0,0.00019649,2]
[360165753,1746586247211,-535.42,0.00019649,2]
[360165754,1746586247221,-450.0,0.00019649,2]
[360165755,1746586247231,-450.0,0.00019649,2]
[360165756,1746586247240,-450.0,0.00019649,2]
[360165757,1746586247250,-956.27,0.00019649,2]
[360165758,1746586247260,-450.0,0.00019649,2]
[360165759,1746586247270,-450.0,0.00019649,2]
[360165760,1746586247279,-968.52,0.00019649,2]
[360165761,1746586247289,-450.0,0.00019649,2]
[360165762,1746586247299,-500.0,0.00019649,2]
[360165763,1746586247308,-450.0,0.00019649,2]
[360165764,1746586247318,-567.46,0.00019649,2]
[360165765,1746586247327,-1219.74,0.00019649,2]
[360165766,1746586247337,-450.0,0.00019649,2]
[360165767,1746586247347,-457.16,0.00019649,2]
[360165768,1746586247357,-254.98621052,0.0001965,2]
[360165769,1746586247367,-637.24,0.0001965,2]
[360165770,1746586247376,-450.0,0.0001965,2]
[360165771,1746586247387,-450.0,0.0001965,2]
[360165772,1746586247399,-450.0,0.0001965,2]
[360165773,1746586247409,-450.0,0.0001965,2]
[360165774,1746586247419,-450.0,0.0001965,2]
[360165775,1746586247429,-450.0,0.0001965,2]
[360165776,1746586247440,-450.0,0.0001965,2]
[360165777,1746586247450,-450.0,0.0001965,2]
[360165778,1746586247459,-450.0,0.0001965,2]
[360165779,1746586247470,-674.52,0.0001965,2]
[360165780,1746586247480,-450.0,0.0001965,2]
[360165781,1746586247490,-450.0,0.0001965,2]
[360165782,1746586247500,-450.0,0.0001965,2]
[360165783,1746586247510,-450.0,0.0001965,2]
[360165784,1746586247520,-450.0,0.0001965,2]
[360165785,1746586247529,-450.0,0.0001965,2]
[360165786,1746586247539,-450.0,0.0001965,2]
[360165787,1746586247549,-450.0,0.0001965,2]
[360165788,1746586247559,-450.0,0.0001965,2]
[360165789,1746586247569,-450.0,0.0001965,2]
[360165790,1746586247579,-478.14,0.0001965,2]
[360165791,1746586247589,-497.87,0.0001965,2]
[360165792,1746586247599,-450.0,0.0001965,2]
[360165793,1746586247609,-450.0,0.0001965,2]
[360165794,1746586247619,-450.0,0.0001965,2]
[360165795,1746586247628,-589.41,0.0001965,2]
[360165796,1746586247638,-450.0,0.0001965,2]
[360165797,1746586247648,-450.0,0.0001965,2]
[360165798,1746586247657,-622.78,0.0001965,2]
[360165799,1746586247667,-450.0,0.0001965,2]
[360165800,1746586247677,-450.0,0.0001965,2]
[360165801,1746586247686,-450.0,0.0001965,2]
[360165802,1746586247696,-450.0,0.0001965,2]
[360165803,1746586247706,-450.0,0.0001965,2]
[360165804,1746586247715,-569.81802045,0.0001965,2]
[360165805,1746586247725,-450.0,0.0001965,2]
[360165806,1746586247735,-1379.6,0.0001965,2]
[360165807,1746586247745,-867.09,0.0001965,2]
[360165808,1746586247754,-495.29,0.0001965,2]
[360165809,1746586247764,-450.0,0.0001965,2]
[360165810,1746586247774,-450.0,0.0001965,2]
[360165811,1746586247783,-972.47,0.0001965,2]
[360165812,1746586247793,-1116.56,0.0001965,2]
[360165813,1746586247804,-829.61,0.0001965,2]
[360165814,1746586247814,-450.0,0.0001965,2]
[360165815,1746586247823,-686.44,0.0001965,2]
[360165816,1746586247833,-481.7,0.0001965,2]
[360165817,1746586247843,-567.87,0.0001965,2]
[360165818,1746586247853,-1155.47,0.0001965,2]
[360165819,1746586247863,-450.0,0.0001965,2]
[360165820,1746586247873,-450.0,0.0001965,2]
[360165821,1746586247884,-450.0,0.0001965,2]
[360165822,1746586247894,-450.0,0.0001965,2]
[360165823,1746586247904,-450.0,0.0001965,2]
[360165824,1746586247914,-1375.1,0.0001965,2]
[360165825,1746586247924,-151.0,0.0001965,2]
[360165826,1746586247935,-1347.64,0.0001965,2]
[360165827,1746586247945,-450.0,0.0001965,2]
[360165828,1746586247955,-450.0,0.0001965,2]
[360165829,1746586247965,-1356.75,0.0001965,2]
[360165830,1746586247975,-498.07,0.0001965,2]
[360165831,1746586247984,-450.0,0.0001965,2]
[360165832,1746586247994,-450.0,0.0001965,2]
[360165833,1746586248004,-1250.19,0.0001965,2]
[360165834,1746586248013,-1020.77,0.0001965,2]
[360165835,1746586248023,-450.0,0.0001965,2]
[360165836,1746586248033,-450.0,0.0001965,2]
[360165837,1746586248044,-450.0,0.0001965,2]
[360165838,1746586248054,-450.0,0.0001965,2]
[360165839,1746586248066,-450.0,0.0001965,2]
[360165840,1746586248076,-2929.56,0.0001965,2]
[360165841,1746586248086,-762.01,0.0001965,2]
[360165842,1746586248097,-450.0,0.0001965,2]
[360165843,1746586248107,-450.0,0.0001965,2]
[360165844,1746586248118,-450.0,0.0001965,2]
[360165845,1746586248128,-27188.39,0.0001965,2]
[360165846,1746586248138,-28791.51,0.0001965,2]
[360165847,1746586248148,-450.0,0.0001965,2]
[360165848,1746586248158,-450.0,0.0001965,2]
[360165849,1746586248168,-450.0,0.0001965,2]
[360165850,1746586248177,-450.0,0.0001965,2]
[360165851,1746586248187,-450.0,0.0001965,2]
[360165852,1746586248196,-450.0,0.0001965,2]
[360165853,1746586248206,-450.0,0.0001965,2]
[360165854,1746586248215,-633.99,0.0001965,2]
[360165855,1746586248225,-577.8,0.0001965,2]
[360165856,1746586248235,-450.0,0.0001965,2]
[360165857,1746586248244,-450.0,0.0001965,2]
[360165858,1746586248253,-167.62782789,0.0001965,2]
[360165859,1746586248263,-450.0,0.0001965,2]
[360165860,1746586248273,-450.0,0.0001965,2]
[360165861,1746586248283,-179.1499105,0.0001965,2]
[360165862,1746586248292,-1804.57,0.0001965,2]
[360165863,1746586248302,-977.01,0.0001965,2]
[360165864,1746586248311,-450.0,0.0001965,2]
[360165865,1746586248321,-535.42,0.0001965,2]
[360165866,1746586248330,-535.42,0.0001965,2]
[360165867,1746586248340,-6514.38,0.0001965,2]
[360165868,1746586248349,-450.0,0.0001965,2]
[360165869,1746586248358,-891.28,0.0001965,2]
[360165870,1746586248369,-450.0,0.0001965,2]
[360165871,1746586248378,-450.0,0.0001965,2]
[360165872,1746586248388,-450.0,0.0001965,2]
[360165873,1746586248402,-590.46,0.0001965,2]
[360165874,1746586248412,-450.0,0.0001965,2]
[360165875,1746586248422,-450.0,0.0001965,2]
[360165876,1746586248431,-450.0,0.0001965,2]
[360165877,1746586248442,-247.3893519,0.0001965,2]
[360165878,1746586248452,-987.11,0.0001965,2]
[360165879,1746586248462,-956.27,0.0001965,2]
[360165880,1746586248472,-956.27,0.0001965,2]
[360165881,1746586248482,-450.0,0.0001965,2]
[360165882,1746586248491,-450.0,0.0001965,2]
[360165883,1746586248502,-450.0,0.0001965,2]
[360165884,1746586248511,-450.0,0.0001965,2]
[360165885,1746586248521,-5395.74,0.0001965,2]
[360165886,1746586248530,-968.52,0.0001965,2]
[360165887,1746586248541,-968.52,0.0001965,2]
[360165888,1746586248550,-939.54,0.0001965,2]
[360165889,1746586248560,-450.0,0.0001965,2]
[360165890,1746586248569,-450.0,0.0001965,2]
[360165891,1746586248579,-450.0,0.0001965,2]
[360165892,1746586248588,-458.5,0.0001965,2]
[360165893,1746586248598,-450.0,0.0001965,2]
[360165894,1746586248608,-450.0,0.0001965,2]
[360165895,1746586248618,-1155.96,0.0001965,2]
[360165896,1746586248627,-187.41125,0.0001965,2]
[360165897,1746586248637,-450.0,0.0001965,2]
[360165898,1746586248647,-567.46,0.0001965,2]
[360165899,1746586248656,-567.46,0.0001965,2]
[360165900,1746586248666,-187.41125,0.0001965,2]
[360165901,1746586248677,-1740.49,0.0001965,2]
[360165902,1746586248687,-450.0,0.0001965,2]
[360165903,1746586248697,-2181.83,0.0001965,2]
[360165904,1746586248708,-450.0,0.0001965,2]
[360165905,1746586248718,-450.0,0.0001965,2]
[360165906,1746586248729,-1219.74,0.0001965,2]
[360165907,1746586248738,-1219.74,0.0001965,2]
[360165908,1746586248748,-584.6,0.0001965,2]
[360165909,1746586248757,-450.0,0.0001965,2]
[360165910,1746586248767,-450.0,0.0001965,2]
[360165911,1746586248778,-1200.07,0.0001965,2]
[360165912,1746586248787,-474.07,0.0001965,2]
[360165913,1746586248797,-450.0,0.0001965,2]
[360165914,1746586248807,-450.0,0.0001965,2]
[360165915,1746586248817,-450.0,0.0001965,2]
[360165916,1746586248827,-450.0,0.0001965,2]
[360165917,1746586248836,-243.9254738,0.00019651,2]
[360165918,1746586248846,-195990.24810628,0.00019651,2]
[360165919,1746586248921,-312.59061281,0.0001955,2]
[360165920,1746586248931,-450.0,0.0001957,2]
[360165921,1746586248941,-9076.3340722,0.00019651,2]
[360165922,1746586249633,-844.97495363,0.00019501,2]
[360165923,1746586249653,-3000.0,0.00019501,2]
[360165924,1746586249958,-4402.53696813,0.00019501,2]
[360165925,1746586249968,-420.96303187,0.00019543,2]
[360165926,1746586250001,-79.03696813,0.00019543,2]
[360165927,1746586250011,-500.0,0.00019543,2]
[360165928,1746586250020,-450.0,0.00019549,2]
[360165929,1746586250030,-450.0,0.00019549,2]
[360165930,1746586250039,-450.0,0.0001955,2]
[360165931,1746586250049,-7336.92138638,0.00019551,2]
[360165932,1746586250079,-910.59053538,0.00019551,2]
[360165933,1746586250089,-450.0,0.00019573,2]
[360165934,1746586250099,-450.0,0.00019649,2]
[360165935,1746586250108,-2272.88405343,0.00019651,2]
[360165936,1746586338058,153.56,0.00018645,2]
[360165937,1746586353386,189.3,0.00019178,2]
[360165938,1746586394460,-225.92796935,0.00019501,2]
[360165939,1746586416550,813.189,0.0003,30]
[360165941,1746586477162,2414.50897366,0.0003,30]
[360165942,1746586480640,250.0,0.00017,2]
[360165943,1746586481708,300.0,0.00019,2]
[360165945,1746586517568,239.47,0.00018632,2]
[360165946,1746586545000,5316.0427506,0.00019461,2]
[360165947,1746586545644,500.0,0.00029589,30]
[360165948,1746586545905,543.63074529,0.00029863,35]
[360165949,1746586552236,3398.0,0.000301,120]
[360165950,1746586565338,200.0,0.0001862,2]
[360165951,1746586592362,500.0,0.00029589,30]
[360165952,1746586592642,500.0,0.00029863,30]
[360165953,1746586612121,6630.93180045,0.00019471,2]
[360165954,1746586642957,587.58,0.00016678,2]
[360165955,1746586643167,587.58,0.00018942,2]
[360165956,1746586659884,1732.0,0.000195,2]
[360165957,1746586791538,1000.0,0.000186,2]
[360165958,1746586794047,7852.42,0.000186,2]
[360165959,1746586804788,285.9604117,0.000195,2]
[360165960,1746586818912,-390.57296774,0.00019501,2]
[360165961,1746586829234,198.21996909,0.000195,2]
[360165962,1746586856919,1711.0,0.000194,2]
[360165963,1746586862982,-6.41028951,0.00019501,2]
[360165964,1746586863004,-250.0,0.00019501,2]
[360165965,1746586863032,-88.84128366,0.00019501,2]
[360165966,1746586877865,-153.4,0.00019501,2]
[360165967,1746586894283,181.46799746,0.00019409,2]
[360165968,1746586900311,181.46799744,0.00019429,2]
[360165969,1746586906225,181.46799744,0.00019449,2]
[360165970,1746586937083,153.4,0.00019263,2]
[360165971,1746586959275,160.0,0.0003,32]
[360165972,1746586998501,5967.83862036,0.00019472,2]
[360165973,1746587075425,4784.43847554,0.0001945,2]
[360165974,1746587080414,4784.43847549,0.000195,2]
[360165975,1746587105948,23900.0,0.00018582,2]
[360165976,1746587164873,220.9,0.00014866,2]
[360165977,1746587169792,150.0,0.00018582,2]
[360165978,1746587178054,500.0,0.00029589,30]
[360165979,1746587178308,500.0,0.00029863,30]
[360165980,1746587181508,178.39797219,0.00019484,2]
[360165981,1746587232919,150.0,0.00029589,30]
[360165982,1746587233142,150.0,0.00029616,30]
[360165983,1746587233357,250.25888812,0.00029644,30]
[360165984,1746587235732,500.0,0.00029589,30]
[360165985,1746587236182,500.0,0.00029616,30]
[360165986,1746587236426,500.0,0.00029644,30]
[360165987,1746587236603,500.0,0.00029671,30]
[360165988,1746587236888,500.0,0.00029699,30]
[360165989,1746587236939,300.0,0.000194,7]
[360165990,1746587236973,500.0,0.00029726,30]
[360165991,1746587237104,500.0,0.00029753,30]
[360165992,1746587237278,500.0,0.00029781,30]
[360165993,1746587237910,500.0,0.00029808,30]
[360165994,1746587238168,500.0,0.00029836,30]
[360165995,1746587238345,500.0,0.00029863,30]
[360165996,1746587238516,500.0,0.0002989,30]
[360165997,1746587238694,500.0,0.00029918,30]
[360165998,1746587238865,598.68940597,0.00029945,30]
[360165999,1746587239032,700.0,0.000195,7]
[360166000,1746587239783,150.0,0.00029589,30]
[360166001,1746587239935,212.26492977,0.00029616,30]
[360166002,1746587241013,500.0,0.00029589,30]
[360166003,1746587241073,160.0,0.0003,32]
[360166004,1746587241233,500.0,0.00029616,30]
[360166005,1746587241449,320.10027424,0.00029644,30]
[360166006,1746587242727,150.0,0.00029589,30]
[360166007,1746587243154,224.85573432,0.00029616,30]
[360166008,1746587244615,500.0,0.00029589,30]
[360166009,1746587244743,606.62847601,0.00029616,30]
[360166010,1746587245015,206491.4464,0.0001947,2]
[360166011,1746587246916,150.0,0.00029589,30]
[360166012,1746587247474,150.0,0.00029616,30]
[360166013,1746587247653,229.30542359,0.00029644,30]
[360166014,1746587248659,150.0,0.00029589,30]
[360166015,1746587249056,150.53844504,0.00029616,30]
[360166016,1746587257349,4670.76,0.00018586,2]
[360166017,1746587291347,253.62972806,0.0003,30]
[360166024,1746587292294,500.0,0.0003,30]
[360166025,1746587336762,216.37,0.00018593,2]
[360166026,1746587341939,26355.43377695,0.00018748,2]
[360166027,1746587353817,150.0,0.0003,30]
[360166028,1746587355099,162.0177161,0.0003,30]
[360166029,1746587356062,500.0,0.0003,30]